Cogmind - Beta 17 @@@ ROGUE MODE // 2026.07.01 @ 16:18:18 Player: aperiodic Result: Destroyed by LO-CIA(R) with Subdweller Machine Gun Performance ------------- Evolutions (0) 0 Regions Visited (2) 400 Robots Destroyed (37) 185 Value Destroyed (948) 948 Prototype IDs (5) 100 Alien Tech Used (0) 0 Bonus (0) 0 TOTAL SCORE: 1633 Bonus ------- None Cogmind --------- Core Integrity 0/250 Matter 190/300 Energy 200/200 System Corruption 0% Temperature Cool (0) Movement Rolling (110) Location -10/Subcaves Parts ------- > --- POWER (1) -------- Subdweller Power Source > --- PROPULSION (2) --- Subdweller Monowheel Subdweller Monowheel > --- UTILITY (2) ------ (None) > --- WEAPON (2) ------- Subdweller Shrapnel Launcher > --- INVENTORY (5) ---- Large Storage Unit Hacking Suite Mining Laser Multitool Peak State ------------ > --- POWER ------------ Subdweller Power Source > --- PROPULSION ------- Subdweller Monowheel Subdweller Monowheel > --- UTILITY ---------- Scrap Shield > --- WEAPON ----------- Subdweller Laser Light Cannon > --- INVENTORY -------- Hacking Suite Subdweller Shrapnel Launcher Multitool [Rating: 13] Favorites ----------- Power Light Ion Engine Engine Light Ion Engine Propulsion Light Treads Treads Light Treads Wheel Wheel Utility Light Armor Plating Device Seismic Detector Storage Large Storage Unit Protection Light Armor Plating Weapon Light Cannon Energy Gun Subdweller Laser Ballistic Gun Light Assault Rifle Ballistic Cannon Light Cannon Launcher Grenade Launcher Special Weapon Mining Laser Build | -11 -10 -10 ------- Run | Yrd Mat Sub Slots Evolved . | . . . Power . | . . . Propulsion . | . . . Utility . | . . . Weapon . | . . . Parts Attached 32 | 7 11 14 Power 6 | 1 2 3 Engine 6 | 1 2 3 Core . | . . . Reactor . | . . . Propulsion 10 | 2 3 5 Treads 4 | . 3 1 Leg . | . . . Wheel 6 | 2 . 4 Hover . | . . . Flight . | . . . Utility 8 | 2 3 3 Device 1 | 1 . . Storage 2 | 1 1 . Processor . | . . . Hackware . | . . . Protection 5 | . 2 3 Artifact . | . . . Weapon 8 | 2 3 3 Energy Gun 3 | 1 1 1 Energy Cannon . | . . . Ballistic Gun 1 | 1 . . Ballistic Cannon 1 | . 1 . Launcher 2 | . . 2 Special Weapon 1 | . 1 . Impact Weapon . | . . . Slashing Weapon . | . . . Piercing Weapon . | . . . Special Melee Weapon . | . . . Unidentified Prototypes . | . . . Parts Lost 11 | . 2 9 Power 3 | . 1 2 Propulsion 2 | . . 2 Utility 3 | . 1 2 Weapon 3 | . . 3 Highest Loss Streak 2 | . 1 2 To Critical Strikes . | . . . Average Backups 7 | 5 8 7 Power . | . . . Propulsion 3 | 3 5 2 Utility . | . . 1 Weapon 2 | 1 2 3 Tool/Special . | . . . Unused Backups 7 | . 2 5 Power . | . . . Propulsion 3 | . 1 2 Utility 1 | . . 1 Weapon 2 | . 1 1 Tool/Special 1 | . . 1 Average Slot Usage (%) 88 | . 98 83 Engine 11 | . 13 10 Treads 11 | . 12 11 Wheel 16 | . 15 16 Storage 9 | . 14 7 Protection 12 | . 10 13 Energy Gun 8 | . 5 9 Ballistic Gun 4 | . 10 1 Ballistic Cannon 9 | . 8 10 Launcher 1 | . . 1 Special Weapon 1 | . 3 . Peak Build Rating 13 | 7 8 13 Average Rating 8 | 6 7 9 On Entrance 5 | . 7 8 Avg Prop Armor Cover (%) 6 | . . 6 Naked Turns . | . . . Heaviest Build 35 | 11 30 35 Greatest Support 40 | 20 40 40 Greatest Overweight (x) 2 | 2 1 2 Average Overweight (x) . | . . . Largest Inventory Capacity 15 | 8 15 15 Average Capacity 9 | 7 9 10 Most Carried 11 | 8 9 11 Average Carried 7 | 5 8 7 Final Capacity 15 | 8 15 5 Final Carried 9 | 8 9 4 Class Distribution -------------------- 71% | Mutant 28% | Subdweller-Mutant Dominant Class ---------------- Mutant | -10/Materials Mutant | -10/Subcaves Resources | -11 -10 -10 ----------- Run | Yrd Mat Sub Matter Collected 1033 | 292 330 411 Remotely . | . . . Salvage Created 1139 | 174 643 322 Parts 71 | 11 38 22 Haulers Intercepted 2 | . 2 . Recyclers Shooed . | . . . Parts Field Recycled . | . . . Retrieved Matter . | . . . Parts Self-Destructed 15 | . . 15 Prevented . | . . . Parts Restored . | . . . Kills | -11 -10 -10 ------- Run | Yrd Mat Sub Combat Hostiles Destroyed 25 | . 10 15 Guns 13 | . 8 5 Cannons 6 | . 2 4 AOE 6 | . . 6 Classes Destroyed 7 | 2 3 2 Tunneler 5 | 5 . . Hauler 2 | . 2 . Recycler 3 | 1 2 . Watcher 2 | . 2 . Swarmer 4 | . . 4 Grunt 10 | . 10 . Subdweller 11 | . . 11 Best Kill Streak 9 | 2 9 2 Combat Bots Only 6 | . 6 2 Max Kills in Single Turn 2 | 1 1 2 Gunslinging . | . . . Exploded 2 | . . 2 Melee . | . . . Uniques/NPCs Destroyed . | . . . Combat | -11 -10 -10 -------- Run | Yrd Mat Sub Hostile Shots Fired 158 | . 48 110 Missed 40 | . 9 31 Hits 118 | . 39 79 Projectile 118 | . 39 79 Critical Strikes 2 | . 1 1 Damage Taken 1852 | . 533 1319 Core 253 | . 71 182 Absorbed by Shields . | . . . Core Remaining (%) 100 | 100 . . Volleys Fired 178 | 22 76 80 Largest 2 | 2 2 2 Hottest 100 | 60 100 100 Shots Fired 292 | 44 135 113 Gun 221 | 44 109 68 Cannon 46 | . 13 33 Launcher 11 | . . 11 Special 14 | . 13 1 Kinetic 145 | 22 76 47 Thermal 141 | 22 59 60 Explosive 6 | . . 6 Electromagnetic . | . . . Robot Hit Streak 20 | 11 20 16 Robot Miss Streak 5 | 2 5 4 Penetration Max . | . . . Secondary Targets . | . . . Shots Hit Robots 186 | 29 87 70 Core Hits 71 | 9 37 25 Critical Kills . | . . . Critical Parts Destroyed 1 | . 1 . Critical Strikes 3 | . 3 . Burn 2 | . 2 . Destroy 1 | . 1 . Melee Attacks . | . . . Impact . | . . . Slashing . | . . . Piercing . | . . . Sneak Attacks . | . . . Combat Hostiles . | . . . Follow-up Attacks . | . . . Damage Inflicted 2904 | 284 932 1688 Guns 1726 | 284 827 615 Cannons 554 | . 105 449 Explosions 624 | . . 624 Melee . | . . . Ramming . | . . . Kinetic 1389 | 88 498 803 Thermal 1179 | 196 434 549 Explosive 336 | . . 336 Electromagnetic . | . . . Impact . | . . . Slashing . | . . . Piercing . | . . . Highest Corruption . | . . . Average Corruption . | . . . Corruption Purged . | . . . Corruption Blocked . | . . . Overload Shots . | . . . Overflow Damage . | . . . Projectiles . | . . . Explosions . | . . . Melee . | . . . Knockbacks 9 | . 3 6 Impact . | . . . Kinetic 9 | . 3 6 Secondary . | . . . Self-Inflicted Damage 23 | . . 23 Shots 1 | . . 1 Rammed . | . . . Targets Rammed . | . . . Kicked . | . . . Crushed . | . . . Highest Temperature 256 | 40 256 . Average Temperature 59 | 21 66 . Received Heat Transfer 588 | . 321 267 Siege Activations . | . . . Martial Activations . | . . . Shielding Activations . | . . . Robots Disrupted . | . . . Combat Hostiles . | . . . Robots Corrupted . | . . . Combat Hostiles . | . . . Parts Fried . | . . . Impact Corruptions . | . . . Robots Melted . | . . . Combat Hostiles . | . . . Parts Melted 1 | . . 1 Heat Transferred 2230 | 425 1130 675 Parts Sabotaged . | . . . Parts Stolen . | . . . Parts Stripped . | . . . Power Chain Reactions . | . . . Alert | -11 -10 -10 ------- Run | Yrd Mat Sub Maximum Alert Level . | . . . Low Security (%) 100 | 100 100 . Level 1 . | . . . Level 2 . | . . . Level 3 . | . . . Level 4 . | . . . Level 5 . | . . . High Security . | . . . Max Security . | . . . Peak Influence 129 | 10 129 . Initial . | . . . Average 40 | 1 49 . Influence Increases 538 | 30 368 140 Destroy 0b10 Robot/C 280 | . 200 80 Destroy 0b10 Robot/NC 60 | 30 30 . Destroy Leader 48 | . 48 . Successful Hack 48 | . 48 . Destroy Structure 12 | . 12 . Lose Combat Pursuer 90 | . 30 60 Influence Decreases 538 | 30 368 140 Time Decay 478 | 30 348 100 Lost Part 60 | . 20 40 Squads Dispatched 1 | . 1 . Investigation . | . . . Extermination . | . . . Reinforcement 1 | . 1 . Assault . | . . . Garrison . | . . . Intercept . | . . . Searches Triggered . | . . . Construction Impeded . | . . . Haulers Reinforced . | . . . Active Scanning Responses . | . . . Cargo Convoy Interrupts . | . . . Stealth | -11 -10 -10 --------- Run | Yrd Mat Sub Distress Signals 2 | . 2 . Communications Jammed . | . . . Distress Signals . | . . . Times Spotted 46 | . 23 23 Peak Tracking Total 7 | . 7 6 Tactical Retreats 5 | . 1 4 Traps | -11 -10 -10 ------- Run | Yrd Mat Sub Traps Triggered 1 | . . 1 Indirectly . | . . . Trap Hack Attempts . | . . . Triggered . | . . . Disarmed . | . . . Reprogrammed . | . . . Reused . | . . . Traps Extracted . | . . . Installed . | . . . Triggered . | . . . Machines | -11 -10 -10 ---------- Run | Yrd Mat Sub Machines Disabled . | . . . Max in Single Turn . | . . . Machines Repaired . | . . . Machines Dismantled . | . . . Machines Sabotaged . | . . . Overloaded Fab Kills . | . . . Hacking | -11 -10 -10 --------- Run | Yrd Mat Sub Machines Accessed 7 | . 7 . Terminals 7 | . 7 . Fabricators . | . . . Repair Stations . | . . . Recycling Units . | . . . Scanalyzers . | . . . Garrison Access . | . . . Total Hacks 27 | . 27 . Successful 19 | . 19 . Failed 8 | . 8 . Catastrophic . | . . . Database Lockouts . | . . . Manual 18 | . 18 . Terminals 27 | . 27 . Fabricators . | . . . Repair Stations . | . . . Recycling Units . | . . . Scanalyzers . | . . . Garrison Access . | . . . Terminal Hacks 7 | . 7 . Record 1 | . 1 . Prototype ID Bank 3 | . 3 . Terminal Index 1 | . 1 . Locate Traps 1 | . 1 . Zone Layout 1 | . 1 . Fabricator Hacks . | . . . Repair Station Hacks . | . . . Recycling Unit Hacks . | . . . Scanalyzer . | . . . Garrison Access Hacks . | . . . Unauthorized Hacks 12 | . 12 . Terminals 12 | . 12 . Assimilate 3 | . 3 . Botnet 3 | . 3 . Operators 1 | . 1 . Skim 5 | . 5 . Fabricators . | . . . Repair Stations . | . . . Recycling Units . | . . . Scanalyzers . | . . . Garrison Access . | . . . Data Cores Recovered . | . . . Used . | . . . Hacking Detections 4 | . 4 . Full Trace Events . | . . . Feedback Events . | . . . Feedback Blocked . | . . . Robot Schematics Acquired . | . . . Robots Built . | . . . Authchips . | . . . Time . | . . . Total Robot Build Rating . | . . . Part Schematics Acquired . | . . . Parts Built . | . . . Authchips . | . . . Time . | . . . Total Part Build Rating . | . . . Part Studies Acquired . | . . . Parts Repaired . | . . . Time . | . . . Parts Recycled . | . . . Recycled Matter . | . . . Retrieved Matter . | . . . Retrieved Components . | . . . Parts Scanalyzed . | . . . Part Schematics Acquired . | . . . Parts Damaged . | . . . Bothacking | -11 -10 -10 ------------ Run | Yrd Mat Sub Used RIF Installer . | . . . Robots Hacked . | . . . Non-combat . | . . . Combat . | . . . Robot Hacks Applied . | . . . Relay Couplers Released . | . . . Fabnet Peak Effective % . | . . . Robots Rewired . | . . . Allies Hacked . | . . . Hacks Repelled . | . . . Allies | -11 -10 -10 -------- Run | Yrd Mat Sub Total Allies 1 | . 1 . Largest Group 1 | . 1 1 Highest-Rated Group 10 | . 10 10 Highest-Rated Ally 10 | . 10 10 Total Orders 5 | . . 5 STAY 3 | . . 3 FOLLOW 2 | . . 2 Ally Attacks . | . . . Total Damage . | . . . Kills . | . . . Allies Corrupted . | . . . Allies Melted . | . . . Intel | -11 -10 -10 ------- Run | Yrd Mat Sub Active Infowar (turns) 270 | 132 138 . Seismic 270 | 132 138 . Robot Analysis Total . | . . . Derelict Logs Recovered . | . . . Drone Launches . | . . . Drone Recoveries . | . . . Exploration | -11 -10 -10 ------------- Run | Yrd Mat Sub Turns Passed 3157 | 222 959 1976 Spaces Moved 2168 | 172 616 1380 Core 5 | 5 . . Treads 613 | . 134 479 Legs . | . . . Wheels 1550 | 167 482 901 Hover . | . . . Flight . | . . . Fastest Speed 50 | 50 80 95 Average Speed 112 | 80 98 122 Slowest Speed 160 | 150 160 160 Overloaded Moves . | . . . Propulsion Burnouts . | . . . Robots Hopped . | . . . Potential Cave-ins . | . . . Cave-ins Triggered . | . . . Exploration Rate (%) 50 | 4 87 59 Regions Visited 2 Branch Regions 1 Pre-discovered Areas . | . . . Known Exits Taken . | . . . Unknown Exits Taken 2 | 1 1 . Scrap Searched 1 | . . 1 Spaces Dug 8 | . 8 . Terrain Destroyed 97 | . 12 85 Melee . | . . . Projectile 12 | . 12 . AOE 85 | . . 85 Terrain Rammed . | . . . Walls Destroyed . | . . . Machines Disabled . | . . . Actions | -11 -10 -10 --------- Run | Yrd Mat Sub Total 2588 | 212 820 1556 Wait 131 | 4 92 35 Move 2166 | 171 615 1380 Hop . | . . . Pick Up 26 | 8 6 12 Fast Attach 13 | 7 2 4 Attach 8 | . 1 7 Detach 1 | . . 1 Swap 34 | . 20 14 Drop 27 | . 8 19 Fire 178 | 22 76 80 Melee . | . . . Ram . | . . . Kick . | . . . Crush . | . . . Escape Stasis . | . . . Rewire . | . . . Trap . | . . . Miscellaneous 4 | . . 4 Route ------- -11/Scrapyard -10/Materials (discovered 5 exits: [*Mat x3] / Min / [*Sub]) -10/Subcaves (discovered 3 exits: [*Mat x2] / [*Rec]) History --------- Turn | Location | Event 21 | -11/Scrapyard | Discovered new exit (range 15) 223 | -11/Scrapyard | Entered Materials 316 | -10/Materials | Build established: Mutant 542 | -10/Materials | Discovered new exit (range 9) 710 | -10/Materials | Discovered new exit (range 16) 760 | -10/Materials | Learned 2 Mines zone layouts 794 | -10/Materials | Loaded intel: 33 machine locations 819 | -10/Materials | Learned 2 Storage zone layouts 834 | -10/Materials | Identified exit to Mines 838 | -10/Materials | Learned location of 1 exit from Recycling 839 | -10/Materials | Learned location of 1 exit from Recycling 848 | -10/Materials | Learned 4 Recycling zone layouts 866 | -10/Materials | Learned location of 1 exit from Recycling 875 | -10/Materials | Discovered new exit (range 16) 1173 | -10/Materials | Discovered new exit (range 7) 1182 | -10/Materials | Entered Subcaves 1182 | -10/Subcaves | Accompanied by 1 ally 1728 | -10/Subcaves | Shifting Twisted Machinery released Flamer 2052 | -10/Subcaves | Core integrity fell below 50% 2374 | -10/Subcaves | Build established: Subdweller-Mutant 2444 | -10/Subcaves | Discovered new exit (range 11) 2546 | -10/Subcaves | Shifting Twisted Machinery released Mak. Leg 2617 | -10/Subcaves | Core integrity fell below 20% 2736 | -10/Subcaves | Discovered new exit (range 14) 3102 | -10/Subcaves | Discovered new exit (range 5) 3158 | -10/Subcaves | Destroyed by LO-CIA(R) with Subdweller Machine Gun Last Messages --------------- 02992_ Acquired Grenade Launcher. 03057_ Scrap Shield destroyed. 03057_ 5R-ZSD(R) destroyed. 03066_ Sub. Monowheel shoots sparks and powers down. 03070_ Acquired 42 matter. 03083_ Acquired 40 matter. 03085_ Subatomizers dissect the Sub. Optics. 03102_ EXIT=FOUND 03122_ S9-B76(R) destroyed. 03129_ Dropped Sub. Monowheel. 03131_ Acquired 20 matter. 03133_ Acquired 10 matter. 03134_ ML-EB8(R) destroyed. 03135_ Acquired 10 matter. 03135_ Grenade Launcher destroyed. 03153_ 7J-IV1(R) affixes Scrap Shield Fragment to Scrap Shield. 03155_ Destroyed Scrap Shield. 03157_ 7J-IV1(R) destroyed. Map ----- +----------------------------------------------------+ | ?????????????????????????????????????????????????? | | ?????????????????????????????????????????????????? | | ???????????????????????????? ??????????????????? | | ???????????????????????????? ????????????????? | | ???????????????????????????? ???????????????? | | ???????????????????????????? ???????????????? | | ???????????????????????????? ???????????????? | | ???????????????????????????# ????????????????? | | ???????????????????????????# ????????????????? | | ??????????#????????????????# ?????????????????? | | ?????????? ??????#?????# ##????????????????? | | ?????????? ###???""? ?# #????????????????? | | ?????????? #???? "" #; ????????????????? | | ?????????? """? ?# ""# & #??????????????? | | ??????????# """ ??# " ??????????????? | | ??????????# """ ??#""" ???????????????? | | ?????????## """#????# ????????????????? | | ??????#### """"#???## ????????????????? | | ?????## """#??## ##???????????????? | | ????## ""#??##"" #???????????????? | | ???## ""#?##""" ! #???????????????? | | ???# ""###*%"" = # ##???????????????? | | ???# & """" ! "&## ## ##???????????????? | | ???# * ## ### ### ###?????????????? | | ???## ! # ## #####?# #?# < ##????????????? | | ??## ####% #?????# @ #### #????????????? | | ### ##### ##?????# ##????????????? | | # ###?## %## #?# ######?????????????? | | ###???# #??# #####??????????????????? | | ##???# ## ###??????????????????????? | | # ######### ### ?????????????????????????? | | ## ###??### #?# ?????????????????????????? | | ?#### ##???? ## ?????????????????????????? | | ????## ##??? ## ?????????????????????????? | | ?????# #??? ?????????????????????????? | | ?????# #??? ##?????????????????????????? | | ?????## #??? ???????????????????????????? | | ??????# #??? ????????????????????????????? | | ??????# #?? ????????????????????????????? | | ??????# ##??? ????????????????????????????? | | ??????# #????? ???????????????????????????? | | ??????## #????? ???????????????????????????? | | ??????## #####??"" ?????????????????????????????? | | ??????# #??????????????????????????????????? | | ??????# #??????????????????????????????????? | | ??????## ##??????????????????????????????????? | | ??????## " ##???????????????????????????????????? | | #?##### ##?###?##?????????????????????????????? | | ## # ####"## ##????????????????????????????? | | ###"""" " #????????????????????????????? | +----------------------------------------------------+ Best States ------------- Heat Dissipation 25 Energy Generation 15 Energy Capacity 200 Matter Stores 300 Matter Capacity 300 Sight Range 16 Terrain Scan Density 10 Armor Coverage 800 Propulsion Shielding 33 Evasion (%) 44 Recoil Reduction 2 Item Schematics ----------------- None Robot Schematics ------------------ None Fabricated ------------ Nothing Repaired ---------- Nothing Studied --------- None Alien Tech Used ----------------- None Achievements -------------- Survival Of The Most Covered Challenges ------------ None Game ------ Seed NetworkSegregatorKit Manual? 0 Play Time 00:41:51 Cumulative 683.6 hours Start 2026.07.01 @ 15:36:56 End 2026.07.01 @ 16:18:18 Sessions 1 Manual Loads 0 Difficulty Rogue Special Mode None Game No. 231 Rogue 227 Adventurer 4 Explorer 0 Win Type - Total 21 Types 9/2/6/0/0/0/2/2/0/0 Lore% 57 Gallery% 69 Achievement% 46 Wizard Run 0 Options --------- Layout 1 ASCII 1 Keyboard 0 Movement Arrows Keybinds 0 Fullscreen 1 Font 40/SmallcapsGlow Map View 50x40 Zoom Use 0% Tactical HUD 1 Map Filters NONE Filters NONE Steam 1 RUN: 8a4c74f2-f019-4ca0-97f1-6f50d2b488c6